{"text_format":"3","workbook":"xlsx","n_sheets":4,"sheets":["Exemptions and requests","Ongoing applications","Lists","Log"],"not_rendered":{"defined_names":4,"comments":1},"read":"whole","date_system":"1900"}

{"sheet":"Exemptions and requests","index":0,"n_rows":392,"n_cols":6,"rows_kept":392,"merged":[[0,1,0,2],[0,4,0,5],[1,0,1,5]]}
["Directive 2011/65/EU (RoHS2)","RoHS 2 exemptions - Validity and rolling plan",null,"Version:\n05/02/2018","Contact:\nENV-ROHS@ec.europa.eu"]
["DISCLAIMER: This text is meant purely as a documentation tool and has no legal effect. The Union's institutions do not assume any liability for its contents. Official legal interpretation of EU legislation can only be provided by the European Court of Justice. The above remarks are without prejudice to the position the Commission might take should the issue arise in a procedure before the Court of Justice.\nDISCLAIMER: some exemptions could be void of technical interest for some categories.\nNote: explanations are given through cell's comment."]
["Exemption\n(or request for new exemption)","Applicable to categories:","Start","End","(Renewal) request","Validity status"]
["Annex III n. 1(a-e)","1 to 7 and 10","2011-07-22","2016-07-21","2015-01-16",{"$f":"IF(ISBLANK(D4),$A$386,IF(C4>TODAY(),$A$382,IF(D4-183-365-TODAY()>0,$A$381,IF(D4<C4,$A$386,IF(E4,$A$383,IF(D4<TODAY(),$A$385,$A$384))))))","v":"Valid - requested for renewal"}]
["Annex III n. 1(f)","1 to 7 and 10","2011-07-22","2016-07-21","2015-01-16","Valid - requested for renewal"]
["Annex III n. 1(g)","1 to 7 and 10","2013-01-29","2017-12-31","2016-06-28","Valid - requested for renewal"]
["Annex III n. 2(a)(1-5)","1 to 7 and 10","2011-07-22","2016-07-21","2015-01-16","Valid - requested for renewal"]
["Annex III n. 2(b)(1)","1 to 7 and 10","2011-07-22","2012-04-13",null,"No longer valid"]
["Annex III n. 2(b)(2)","1 to 7 and 10","2011-07-22","2016-04-13",null,"No longer valid"]
["Annex III n. 2(b)(3)","1 to 7 and 10","2011-07-22","2016-07-21","2015-01-16","Valid - requested for renewal"]
["Annex III n. 2(b)(4)","1 to 7 and 10","2011-07-22","2016-07-21","2015-01-16","Valid - requested for renewal"]
["Annex III n. 3(a-c)","1 to 7 and 10","2011-07-22","2016-07-21","2015-01-16","Valid - requested for renewal"]
["Annex III n. 4(a)","1 to 7 and 10","2011-07-22","2016-07-21","2015-01-16","Valid - requested for renewal"]
["Annex III n. 4(b)(I-III)","1 to 7 and 10","2011-07-22","2016-07-21","2015-01-16","Valid - requested for renewal"]
["Annex III n. 4(c)(I-III)","1 to 7 and 10","2011-07-22","2016-07-21","2015-01-16","Valid - requested for renewal"]
["Annex III n. 4(d)","1 to 7 and 10","2011-07-22","2015-04-13",null,"No longer valid"]
["Annex III n. 4(e)","1 to 7 and 10","2011-07-22","2016-07-21","2015-01-16","Valid - requested for renewal"]
["Annex III n. 4(f)","1 to 7 and 10","2011-07-22","2016-07-21","2015-01-16","Valid - requested for renewal"]
["Annex III n. 4(g)","1 to 7 and 10","2014-05-20","2018-12-31",null,"Valid - no longer renewable"]
["Annex III n. 5(a)","1 to 7 and 10","2011-07-22","2016-07-21",null,"No longer valid"]
["Annex III n. 5(b)","1 to 7 and 10","2011-07-22","2016-07-21","2015-01-16","Valid - requested for renewal"]
["Annex III n. 6(a)","1 to 7 and 10","2011-07-22","2016-07-21","2015-01-16","Valid - requested for renewal"]
["Annex III n. 6(b)","1 to 7 and 10","2011-07-22","2016-07-21","2015-01-16","Valid - requested for renewal"]
["Annex III n. 6(c)","1 to 7 and 10","2011-07-22","2016-07-21","2015-01-20","Valid - requested for renewal"]
["Annex III n. 7(a)","1 to 7 and 10","2011-07-22","2016-07-21","2015-01-20","Valid - requested for renewal"]
["Annex III n. 7(b)","1 to 7 and 10","2011-07-22","2016-07-21",null,"No longer valid"]
["Annex III n. 7(c)-I","1 to 7 and 10","2011-07-22","2016-07-21","2015-01-15","Valid - requested for renewal"]
["Annex III n. 7(c)-II","1 to 7 and 10","2011-07-22","2016-07-21","2015-01-16","Valid - requested for renewal"]
["Annex III n. 7(c)-III","1 to 7 and 10","2011-07-22","2013-01-01",null,"No longer valid"]
["Annex III n. 7(c)-IV","1 to 7 and 10","2013-01-07","2016-07-21","2015-01-16","Valid - requested for renewal"]
["Annex III n. 8(a)","1 to 7 and 10","2011-07-22","2012-01-01",null,"No longer valid"]
["Annex III n. 8(b)","1 to 7 and 10","2011-07-22","2016-07-21","2015-01-16","Valid - requested for renewal"]
["Annex III n. 9","1 to 7 and 10","2011-07-22","2016-07-21","2015-01-20","Valid - requested for renewal"]
["Annex III n. 9(b)","1 to 7 and 10","2011-07-22","2018-07-05",null,"Valid - no longer renewable"]
["Annex III n. 9(b)-(I)","1 to 7 and 10","2018-07-06","2019-07-21",null,"Decided - not yet applied"]
["Annex III n. 11(a)","1 to 7 and 10",null,"2010-09-24",null,{"$f":"IF(ISBLANK(D36),$A$386,IF(C36>TODAY(),$A$382,IF(D36-183-365-TODAY()>0,$A$381,IF(D36<C36,$A$386,IF(E36,$A$383,IF(D36<TODAY(),$A$385,$A$384))))))","v":"No longer valid"}]
["Annex III n. 11(b)","1 to 7 and 10","2011-07-22","2013-01-01",null,"No longer valid"]
["Annex III n. 12","1 to 7 and 10",null,"2010-09-24",null,"No longer valid"]
["Annex III n. 13(a)","1 to 7 and 10","2011-07-22","2021-07-21",null,"Valid"]
["Annex III n. 13(b)","1 to 7 and 10","2011-07-22","2018-07-05",null,"Valid - no longer renewable"]
["Annex III n. 13(b)-(I)","1 to 7 and 10","2018-07-06","2021-07-21",null,"Decided - not yet applied"]
["Annex III n. 13(b)-(II)","1 to 7 and 10","2018-07-06","2021-07-21",null,"Decided - not yet applied"]
["Annex III n. 13(b)-(III)","1 to 7 and 10","2018-07-06","2021-07-21",null,"Decided - not yet applied"]
["Annex III n. 14","1 to 7 and 10",null,"2011-01-01",null,"No longer valid"]
["Annex III n. 15","1 to 7 and 10","2011-07-22","2016-07-21","2015-01-16","Valid - requested for renewal"]
["Annex III n. 16","1 to 7 and 10","2011-07-22","2013-09-01",null,"No longer valid"]
["Annex III n. 17","1 to 7 and 10","2011-07-22","2016-07-21",null,"No longer valid"]
["Annex III n. 18(a)","1 to 7 and 10",null,"2011-01-01",null,"No longer valid"]
["Annex III n. 18(b)","1 to 7 and 10","2011-07-22","2016-07-21","2015-01-16","Valid - requested for renewal"]
["Annex III n. 19","1 to 7 and 10",null,"2011-06-01",null,"No longer valid"]
["Annex III n. 20","1 to 7 and 10",null,"2011-06-01",null,"No longer valid"]
["Annex III n. 21","1 to 7 and 10","2011-07-22","2016-07-21","2015-01-16","Valid - requested for renewal"]
["Annex III n. 23","1 to 7 and 10",null,"2010-09-24",null,"No longer valid"]
["Annex III n. 24","1 to 7 and 10","2011-07-22","2016-07-21","2015-01-16","Valid - requested for renewal"]
["Annex III n. 25","1 to 7 and 10","2011-07-22","2016-07-21",null,"No longer valid"]
["Annex III n. 26","1 to 7 and 10",null,"2011-06-01",null,"No longer valid"]
["Annex III n. 27","1 to 7 and 10",null,"2010-09-24",null,"No longer valid"]
["Annex III n. 29","1 to 7 and 10","2011-07-22","2016-07-21","2015-01-16","Valid - requested for renewal"]
["Annex III n. 30","1 to 7 and 10","2011-07-22","2016-07-21",null,"No longer valid"]
["Annex III n. 31","1 to 7 and 10","2011-07-22","2016-07-21",null,"No longer valid"]
["Annex III n. 32","1 to 7 and 10","2011-07-22","2016-07-21","2015-01-16","Valid - requested for renewal"]
["Annex III n. 33","1 to 7 and 10","2011-07-22","2016-07-21",null,"No longer valid"]
["Annex III n. 34","1 to 7 and 10","2011-07-22","2016-07-21","2015-01-16","Valid - requested for renewal"]
["Annex III n. 36","1 to 7 and 10",null,"2010-07-01",null,"No longer valid"]
["Annex III n. 37","1 to 7 and 10","2011-07-22","2016-07-21","2015-01-16","Valid - requested for renewal"]
["Annex III n. 38","1 to 7 and 10","2011-07-22","2016-07-21",null,"No longer valid"]
["Annex III n. 39","1 to 7 and 10","2011-07-22","2018-11-20",null,"Valid - no longer renewable"]
["Annex III n. 39(a)","1 to 7 and 10","2018-11-21","2019-10-31",null,{"$f":"IF(ISBLANK(D68),$A$386,IF(C68>TODAY(),$A$382,IF(D68-183-365-TODAY()>0,$A$381,IF(D68<C68,$A$386,IF(E68,$A$383,IF(D68<TODAY(),$A$385,$A$384))))))","v":"Decided - not yet applied"}]
["Annex III n. 40","1 to 7 and 10","2013-01-07","2013-12-31",null,"No longer valid"]
["Annex III n. 41","1 to 7 and 10","2014-05-20","2018-12-31","2017-06-30","Valid - requested for renewal"]
["Annex III n. 1(f)","8 and 9 other than in vitro and industrial","2014-07-22","2021-07-21",null,"Valid"]
["Annex III n. 2(b)(2)","8 and 9 other than in vitro and industrial","2014-07-22","2016-04-13",null,"No longer valid"]
["Annex III n. 2(b)(3)","8 and 9 other than in vitro and industrial","2014-07-22","2021-07-21",null,"Valid"]
["Annex III n. 2(b)(4)","8 and 9 other than in vitro and industrial","2014-07-22","2021-07-21",null,"Valid"]
["Annex III n. 3(a-c)","8 and 9 other than in vitro and industrial","2014-07-22","2021-07-21",null,"Valid"]
["Annex III n. 4(a)","8 and 9 other than in vitro and industrial","2014-07-22","2021-07-21",null,"Valid"]
["Annex III n. 4(d)","8 and 9 other than in vitro and industrial","2014-07-22","2015-04-13",null,"No longer valid"]
["Annex III n. 4(e)","8 and 9 other than in vitro and industrial","2014-07-22","2021-07-21",null,"Valid"]
["Annex III n. 4(f)","8 and 9 other than in vitro and industrial","2014-07-22","2021-07-21",null,"Valid"]
["Annex III n. 5(a)","8 and 9 other than in vitro and industrial","2014-07-22","2021-07-21",null,"Valid"]
["Annex III n. 5(b)","8 and 9 other than in vitro and industrial","2014-07-22","2021-07-21",null,"Valid"]
["Annex III n. 6(a)","8 and 9 other than in vitro and industrial","2014-07-22","2021-07-21",null,"Valid"]
["Annex III n. 6(b)","8 and 9 other than in vitro and industrial","2014-07-22","2021-07-21",null,"Valid"]
["Annex III n. 6(c)","8 and 9 other than in vitro and industrial","2014-07-22","2021-07-21",null,"Valid"]
["Annex III n. 7(a)","8 and 9 other than in vitro and industrial","2014-07-22","2021-07-21",null,"Valid"]
["Annex III n. 7(b)","8 and 9 other than in vitro and industrial","2014-07-22","2021-07-21",null,"Valid"]
["Annex III n. 7(c)-I","8 and 9 other than in vitro and industrial","2014-07-22","2021-07-21",null,"Valid"]
["Annex III n. 7(c)-II","8 and 9 other than in vitro and industrial","2014-07-22","2021-07-21",null,"Valid"]
["Annex III n. 7(c)-IV","8 and 9 other than in vitro and industrial","2013-01-07","2016-07-21","2015-01-16","Valid - requested for renewal"]
["Annex III n. 8(b)","8 and 9 other than in vitro and industrial","2014-07-22","2021-07-21",null,"Valid"]
["Annex III n. 9","8 and 9 other than in vitro and industrial","2014-07-22","2021-07-21",null,"Valid"]
["Annex III n. 9(b)","8 and 9 other than in vitro and industrial","2014-07-22","2021-07-21",null,"Valid"]
["Annex III n. 13(a)","8 and 9 other than in vitro and industrial","2014-07-22","2021-07-21",null,"Valid"]
["Annex III n. 13(b)","8 and 9 other than in vitro and industrial","2014-07-22","2021-07-21",null,"Valid"]
["Annex III n. 15","8 and 9 other than in vitro and industrial","2014-07-22","2021-07-21",null,"Valid"]
["Annex III n. 17","8 and 9 other than in vitro and industrial","2014-07-22","2021-07-21",null,"Valid"]
["Annex III n. 18(b)","8 and 9 other than in vitro and industrial","2014-07-22","2021-07-21",null,"Valid"]
["Annex III n. 21","8 and 9 other than in vitro and industrial","2014-07-22","2021-07-21",null,"Valid"]
["Annex III n. 24","8 and 9 other than in vitro and industrial","2014-07-22","2021-07-21",null,"Valid"]
["Annex III n. 25","8 and 9 other than in vitro and industrial","2014-07-22","2021-07-21",null,{"$f":"IF(ISBLANK(D100),$A$386,IF(C100>TODAY(),$A$382,IF(D100-183-365-TODAY()>0,$A$381,IF(D100<C100,$A$386,IF(E100,$A$383,IF(D100<TODAY(),$A$385,$A$384))))))","v":"Valid"}]
["Annex III n. 29","8 and 9 other than in vitro and industrial","2014-07-22","2021-07-21",null,"Valid"]
["Annex III n. 30","8 and 9 other than in vitro and industrial","2014-07-22","2021-07-21",null,"Valid"]
["Annex III n. 31","8 and 9 other than in vitro and industrial","2014-07-22","2021-07-21",null,"Valid"]
["Annex III n. 32","8 and 9 other than in vitro and industrial","2014-07-22","2021-07-21",null,"Valid"]
["Annex III n. 33","8 and 9 other than in vitro and industrial","2014-07-22","2021-07-21",null,"Valid"]
["Annex III n. 34","8 and 9 other than in vitro and industrial","2014-07-22","2021-07-21",null,"Valid"]
["Annex III n. 37","8 and 9 other than in vitro and industrial","2014-07-22","2021-07-21",null,"Valid"]
["Annex III n. 38","8 and 9 other than in vitro and industrial","2014-07-22","2021-07-21",null,"Valid"]
["Annex III n. 39","8 and 9 other than in vitro and industrial","2011-07-22","2018-11-20",null,"Valid - no longer renewable"]
["Annex III n. 39(a)","8 and 9 other than in vitro and industrial","2018-11-20","2019-10-31",null,"Decided - not yet applied"]
["Annex III n. 41","8 and 9 other than in vitro and industrial","2014-07-22","2021-07-21",null,"Valid"]
["Annex IV n. 1","8 and 9 other than in vitro and industrial","2014-07-22","2021-07-21",null,"Valid"]
["Annex IV n. 2","8 and 9 other than in vitro and industrial","2014-07-22","2021-07-21",null,"Valid"]
["Annex IV n. 3","8 and 9 other than in vitro and industrial","2014-07-22","2021-07-21",null,"Valid"]
["Annex IV n. 4","8 and 9 other than in vitro and industrial","2014-07-22","2021-07-21",null,"Valid"]
["Annex IV n. 5","8 and 9 other than in vitro and industrial","2014-07-22","2021-07-21",null,"Valid"]
["Annex IV n. 6","8 and 9 other than in vitro and industrial","2014-07-22","2021-07-21",null,"Valid"]
["Annex IV n. 7","8 and 9 other than in vitro and industrial","2014-07-22","2021-07-21",null,"Valid"]
["Annex IV n. 8","8 and 9 other than in vitro and industrial","2014-07-22","2021-07-21",null,"Valid"]
["Annex IV n. 1a","8 and 9 other than in vitro and industrial","2014-07-22","2021-07-21",null,"Valid"]
["Annex IV n. 1b","8 and 9 other than in vitro and industrial","2014-07-22","2021-07-21",null,"Valid"]
["Annex IV n. 1c","8 and 9 other than in vitro and industrial","2014-07-22","2021-07-21",null,"Valid"]
["Annex IV n. 1d","8 and 9 other than in vitro and industrial","2014-07-22","2021-07-21",null,"Valid"]
["Annex IV n. 9","8 and 9 other than in vitro and industrial","2014-07-22","2021-07-21",null,"Valid"]
["Annex IV n. 10","8 and 9 other than in vitro and industrial","2014-07-22","2021-07-21",null,"Valid"]
["Annex IV n. 11","8 and 9 other than in vitro and industrial","2014-07-22","2021-07-21",null,"Valid"]
["Annex IV n. 12","8 and 9 other than in vitro and industrial","2014-07-22","2021-06-30",null,"Valid"]
["Annex IV n. 13","8 and 9 other than in vitro and industrial","2014-07-22","2021-07-21",null,"Valid"]
["Annex IV n. 14","8 and 9 other than in vitro and industrial","2014-07-22","2021-07-21",null,"Valid"]
["Annex IV n. 15","8 and 9 other than in vitro and industrial","2014-07-22","2021-07-21",null,"Valid"]
["Annex IV n. 16","8 and 9 other than in vitro and industrial","2014-07-22","2021-07-21",null,"Valid"]
["Annex IV n. 17","8 and 9 other than in vitro and industrial","2014-07-22","2021-07-21",null,{"$f":"IF(ISBLANK(D132),$A$386,IF(C132>TODAY(),$A$382,IF(D132-183-365-TODAY()>0,$A$381,IF(D132<C132,$A$386,IF(E132,$A$383,IF(D132<TODAY(),$A$385,$A$384))))))","v":"Valid"}]
["Annex IV n. 18","8 and 9 other than in vitro and industrial","2014-07-22","2021-07-21",null,"Valid"]
["Annex IV n. 19","8 and 9 other than in vitro and industrial","2014-07-22","2021-07-21",null,"Valid"]
["Annex IV n. 20","8 and 9 other than in vitro and industrial","2014-07-22","2021-07-21",null,"Valid"]
["Annex IV n. 21","8 and 9 other than in vitro and industrial","2014-07-22","2019-12-31",null,"Valid"]
["Annex IV n. 22","8 and 9 other than in vitro and industrial","2014-07-22","2021-06-30",null,"Valid"]
["Annex IV n. 23","8 and 9 other than in vitro and industrial","2014-07-22","2021-06-30",null,"Valid"]
["Annex IV n. 24","8 and 9 other than in vitro and industrial","2014-07-22","2019-12-31",null,"Valid"]
["Annex IV n. 25","8 and 9 other than in vitro and industrial","2014-07-22","2021-06-30",null,"Valid"]
["Annex IV n. 26","8 and 9 other than in vitro and industrial","2014-07-22","2021-06-30",null,"Valid"]
["Annex IV n. 27","8 and 9 other than in vitro and industrial","2014-07-22","2020-06-30",null,"Valid"]
["Annex IV n. 28","8 and 9 other than in vitro and industrial","2014-07-22","2017-12-31",null,"No longer valid"]
["Annex IV n. 29","8 and 9 other than in vitro and industrial","2014-07-22","2021-06-30",null,"Valid"]
["Annex IV n. 30","8 and 9 other than in vitro and industrial","2014-07-22","2019-12-31",null,"Valid"]
["Annex IV n. 31","8 and 9 other than in vitro and industrial","2014-07-22","2017-11-05",null,"No longer valid"]
["Annex IV n. 31(a)","8 and 9 other than in vitro and industrial","2017-11-06","2021-07-21",null,"Valid"]
["Annex IV n. 32","8 and 9 other than in vitro and industrial","2014-07-22","2019-12-31",null,"Valid"]
["Annex IV n. 33 IIa","8 and 9 other than in vitro and industrial","2014-07-22","2016-06-30",null,"No longer valid"]
["Annex IV n. 33 IIb","8 and 9 other than in vitro and industrial","2014-07-22","2020-12-31",null,"Valid"]
["Annex IV n. 34","8 and 9 other than in vitro and industrial","2014-07-22","2021-07-21",null,"Valid"]
["Annex IV n. 37","8 and 9 other than in vitro and industrial","2014-07-22","2018-12-31","2017-06-30","Valid - requested for renewal"]
["Annex IV n. 38","8 and 9 other than in vitro and industrial","2014-07-22","2019-12-31",null,"Valid"]
["Annex IV n. 39","8 and 9 other than in vitro and industrial","2014-07-22","2021-07-21",null,"Valid"]
["Annex IV n. 42","8 and 9 other than in vitro and industrial","2015-04-30","2019-06-30","2017-10-06","Valid - requested for renewal"]
["Annex III n. 1(f)","8 in vitro","2016-07-22","2023-07-21",null,{"$f":"IF(ISBLANK(D156),$A$386,IF(C156>TODAY(),$A$382,IF(D156-183-365-TODAY()>0,$A$381,IF(D156<C156,$A$386,IF(E156,$A$383,IF(D156<TODAY(),$A$385,$A$384))))))","v":"Valid"}]
["Annex III n. 2(b)(3)","8 in vitro","2016-07-22","2023-07-21",null,"Valid"]
["Annex III n. 2(b)(4)","8 in vitro","2016-07-22","2023-07-21",null,"Valid"]
["Annex III n. 3(a-c)","8 in vitro","2016-07-22","2023-07-21",null,"Valid"]
["Annex III n. 4(a)","8 in vitro","2016-07-22","2023-07-21",null,"Valid"]
["Annex III n. 4(e)","8 in vitro","2016-07-22","2023-07-21",null,"Valid"]
["Annex III n. 4(f)","8 in vitro","2016-07-22","2023-07-21",null,"Valid"]
["Annex III n. 5(a)","8 in vitro","2016-07-22","2023-07-21",null,"Valid"]
["Annex III n. 5(b)","8 in vitro","2016-07-22","2023-07-21",null,"Valid"]
["Annex III n. 6(a)","8 in vitro","2016-07-22","2023-07-21",null,"Valid"]
["Annex III n. 6(b)","8 in vitro","2016-07-22","2023-07-21",null,"Valid"]
["Annex III n. 6(c)","8 in vitro","2016-07-22","2023-07-21",null,"Valid"]
["Annex III n. 7(a)","8 in vitro","2016-07-22","2023-07-21",null,"Valid"]
["Annex III n. 7(b)","8 in vitro","2016-07-22","2023-07-21",null,"Valid"]
["Annex III n. 7(c)-I","8 in vitro","2016-07-22","2023-07-21",null,"Valid"]
["Annex III n. 7(c)-II","8 in vitro","2016-07-22","2023-07-21",null,"Valid"]
["Annex III n. 7(c)-IV","8 in vitro","2013-01-07","2016-07-21","2015-01-16","Valid - requested for renewal"]
["Annex III n. 8(b)","8 in vitro","2016-07-22","2023-07-21",null,"Valid"]
["Annex III n. 9","8 in vitro","2016-07-22","2023-07-21",null,"Valid"]
["Annex III n. 9(b)","8 in vitro","2016-07-22","2023-07-21",null,"Valid"]
["Annex III n. 13(a)","8 in vitro","2016-07-22","2023-07-21",null,"Valid"]
["Annex III n. 13(b)","8 in vitro","2016-07-22","2023-07-21",null,"Valid"]
["Annex III n. 15","8 in vitro","2016-07-22","2023-07-21",null,"Valid"]
["Annex III n. 17","8 in vitro","2016-07-22","2023-07-21",null,"Valid"]
["Annex III n. 18(b)","8 in vitro","2016-07-22","2023-07-21",null,"Valid"]
["Annex III n. 21","8 in vitro","2016-07-22","2023-07-21",null,"Valid"]
["Annex III n. 24","8 in vitro","2016-07-22","2023-07-21",null,"Valid"]
["Annex III n. 25","8 in vitro","2016-07-22","2023-07-21",null,"Valid"]
["Annex III n. 29","8 in vitro","2016-07-22","2023-07-21",null,"Valid"]
["Annex III n. 30","8 in vitro","2016-07-22","2023-07-21",null,"Valid"]
["Annex III n. 31","8 in vitro","2016-07-22","2023-07-21",null,"Valid"]
["Annex III n. 32","8 in vitro","2016-07-22","2023-07-21",null,"Valid"]
["Annex III n. 33","8 in vitro","2016-07-22","2023-07-21",null,{"$f":"IF(ISBLANK(D188),$A$386,IF(C188>TODAY(),$A$382,IF(D188-183-365-TODAY()>0,$A$381,IF(D188<C188,$A$386,IF(E188,$A$383,IF(D188<TODAY(),$A$385,$A$384))))))","v":"Valid"}]
["Annex III n. 34","8 in vitro","2016-07-22","2023-07-21",null,"Valid"]
["Annex III n. 37","8 in vitro","2016-07-22","2023-07-21",null,"Valid"]
["Annex III n. 38","8 in vitro","2016-07-22","2023-07-21",null,"Valid"]
["Annex III n. 39","8 in vitro","2011-07-22","2018-11-20",null,"Valid - no longer renewable"]
["Annex III n. 39(a)","8 in vitro","2018-11-21","2019-10-31",null,"Decided - not yet applied"]
["Annex III n. 41","8 in vitro","2016-07-22","2023-07-21",null,"Valid"]
["Annex IV n. 1","8 in vitro","2016-07-22","2023-07-21",null,"Valid"]
["Annex IV n. 2","8 in vitro","2016-07-22","2023-07-21",null,"Valid"]
["Annex IV n. 3","8 in vitro","2016-07-22","2023-07-21",null,"Valid"]
["Annex IV n. 4","8 in vitro","2016-07-22","2023-07-21",null,"Valid"]
["Annex IV n. 5","8 in vitro","2016-07-22","2023-07-21",null,"Valid"]
["Annex IV n. 6","8 in vitro","2016-07-22","2023-07-21",null,"Valid"]
["Annex IV n. 7","8 in vitro","2016-07-22","2023-07-21",null,"Valid"]
["Annex IV n. 8","8 in vitro","2016-07-22","2023-07-21",null,"Valid"]
["Annex IV n. 1a","8 in vitro","2016-07-22","2023-07-21",null,"Valid"]
["Annex IV n. 1b","8 in vitro","2016-07-22","2023-07-21",null,"Valid"]
["Annex IV n. 1c","8 in vitro","2016-07-22","2023-07-21",null,"Valid"]
["Annex IV n. 1d","8 in vitro","2016-07-22","2023-07-21",null,"Valid"]
["Annex IV n. 9","8 in vitro","2016-07-22","2023-07-21",null,"Valid"]
["Annex IV n. 10","8 in vitro","2016-07-22","2023-07-21",null,"Valid"]
["Annex IV n. 11","8 in vitro","2016-07-22","2023-07-21",null,"Valid"]
["Annex IV n. 12","8 in vitro","2016-07-22","2021-06-30",null,"Valid"]
["Annex IV n. 13","8 in vitro","2016-07-22","2023-07-21",null,"Valid"]
["Annex IV n. 14","8 in vitro","2016-07-22","2023-07-21",null,"Valid"]
["Annex IV n. 15","8 in vitro","2016-07-22","2023-07-21",null,"Valid"]
["Annex IV n. 16","8 in vitro","2016-07-22","2023-07-21",null,"Valid"]
["Annex IV n. 17","8 in vitro","2016-07-22","2023-07-21",null,"Valid"]
["Annex IV n. 18","8 in vitro","2016-07-22","2023-07-21",null,"Valid"]
["Annex IV n. 19","8 in vitro","2016-07-22","2023-07-21",null,"Valid"]
["Annex IV n. 20","8 in vitro","2016-07-22","2023-07-21",null,"Valid"]
["Annex IV n. 21","8 in vitro","2016-07-22","2019-12-31",null,"Valid"]
["Annex IV n. 22","8 in vitro","2016-07-22","2021-06-30",null,{"$f":"IF(ISBLANK(D220),$A$386,IF(C220>TODAY(),$A$382,IF(D220-183-365-TODAY()>0,$A$381,IF(D220<C220,$A$386,IF(E220,$A$383,IF(D220<TODAY(),$A$385,$A$384))))))","v":"Valid"}]
["Annex IV n. 23","8 in vitro","2016-07-22","2021-06-30",null,"Valid"]
["Annex IV n. 24","8 in vitro","2016-07-22","2019-12-31",null,"Valid"]
["Annex IV n. 25","8 in vitro","2016-07-22","2021-06-30",null,"Valid"]
["Annex IV n. 26","8 in vitro","2016-07-22","2021-06-30",null,"Valid"]
["Annex IV n. 27","8 in vitro","2016-07-22","2020-06-30",null,"Valid"]
["Annex IV n. 28","8 in vitro","2016-07-22","2017-12-31",null,"No longer valid"]
["Annex IV n. 29","8 in vitro","2016-07-22","2021-06-30",null,"Valid"]
["Annex IV n. 30","8 in vitro","2016-07-22","2019-12-31",null,"Valid"]
["Annex IV n. 31","8 in vitro","2014-07-22","2017-11-05",null,"No longer valid"]
["Annex IV n. 31(a)","8 in vitro","2017-11-06","2023-07-21",null,"Valid"]
["Annex IV n. 32","8 in vitro","2016-07-22","2019-12-31",null,"Valid"]
["Annex IV n. 34","8 in vitro","2016-07-22","2021-07-21",null,"Valid"]
["Annex IV n. 37","8 in vitro","2016-07-22","2018-12-31","2017-06-30","Valid - requested for renewal"]
["Annex IV n. 38","8 in vitro","2016-07-22","2019-12-31",null,"Valid"]
["Annex IV n. 39","8 in vitro","2016-07-22","2023-07-21",null,"Valid"]
["Annex IV n. 41","8 in vitro","2016-07-22","2018-12-31","2017-05-25","Valid - requested for renewal"]
["Annex III n. 1(f)","9 industrial","2017-07-22","2024-07-21",null,"Valid"]
["Annex III n. 2(b)(3)","9 industrial","2017-07-22","2024-07-21",null,"Valid"]
["Annex III n. 2(b)(4)","9 industrial","2017-07-22","2024-07-21",null,"Valid"]
["Annex III n. 3(a-c)","9 industrial","2017-07-22","2024-07-21",null,"Valid"]
["Annex III n. 4(a)","9 industrial","2017-07-22","2024-07-21",null,"Valid"]
["Annex III n. 4(e)","9 industrial","2017-07-22","2024-07-21",null,"Valid"]
["Annex III n. 4(f)","9 industrial","2017-07-22","2024-07-21",null,"Valid"]
["Annex III n. 5(a)","9 industrial","2017-07-22","2024-07-21",null,"Valid"]
["Annex III n. 5(b)","9 industrial","2017-07-22","2024-07-21",null,"Valid"]
["Annex III n. 6(a)","9 industrial","2017-07-22","2024-07-21",null,"Valid"]
["Annex III n. 6(b)","9 industrial","2017-07-22","2024-07-21",null,"Valid"]
["Annex III n. 6(c)","9 industrial","2017-07-22","2024-07-21",null,"Valid"]
["Annex III n. 7(a)","9 industrial","2017-07-22","2024-07-21",null,"Valid"]
["Annex III n. 7(b)","9 industrial","2017-07-22","2024-07-21",null,"Valid"]
["Annex III n. 7(c)-I","9 industrial","2017-07-22","2024-07-21",null,"Valid"]
["Annex III n. 7(c)-II","9 industrial","2017-07-22","2024-07-21",null,{"$f":"IF(ISBLANK(D252),$A$386,IF(C252>TODAY(),$A$382,IF(D252-183-365-TODAY()>0,$A$381,IF(D252<C252,$A$386,IF(E252,$A$383,IF(D252<TODAY(),$A$385,$A$384))))))","v":"Valid"}]
["Annex III n. 7(c)-IV","9 industrial","2013-01-07","2016-07-21","2015-01-16","Valid - requested for renewal"]
["Annex III n. 8(b)","9 industrial","2017-07-22","2024-07-21",null,"Valid"]
["Annex III n. 9","9 industrial","2017-07-22","2024-07-21",null,"Valid"]
["Annex III n. 9(b)","9 industrial","2017-07-22","2024-07-21",null,"Valid"]
["Annex III n. 13(a)","9 industrial","2017-07-22","2024-07-21",null,"Valid"]
["Annex III n. 13(b)","9 industrial","2017-07-22","2024-07-21",null,"Valid"]
["Annex III n. 15","9 industrial","2017-07-22","2024-07-21",null,"Valid"]
["Annex III n. 17","9 industrial","2017-07-22","2024-07-21",null,"Valid"]
["Annex III n. 18(b)","9 industrial","2017-07-22","2024-07-21",null,"Valid"]
["Annex III n. 21","9 industrial","2017-07-22","2024-07-21",null,"Valid"]
["Annex III n. 24","9 industrial","2017-07-22","2024-07-21",null,"Valid"]
["Annex III n. 25","9 industrial","2017-07-22","2024-07-21",null,"Valid"]
["Annex III n. 29","9 industrial","2017-07-22","2024-07-21",null,"Valid"]
["Annex III n. 30","9 industrial","2017-07-22","2024-07-21",null,"Valid"]
["Annex III n. 31","9 industrial","2017-07-22","2024-07-21",null,"Valid"]
["Annex III n. 32","9 industrial","2017-07-22","2024-07-21",null,"Valid"]
["Annex III n. 33","9 industrial","2017-07-22","2024-07-21",null,"Valid"]
["Annex III n. 34","9 industrial","2017-07-22","2024-07-21",null,"Valid"]
["Annex III n. 37","9 industrial","2017-07-22","2024-07-21",null,"Valid"]
["Annex III n. 38","9 industrial","2017-07-22","2024-07-21",null,"Valid"]
["Annex III n. 39","9 industrial","2011-07-22","2018-11-20",null,"Valid - no longer renewable"]
["Annex III n. 39(a)","9 industrial","2018-11-21","2019-10-31",null,"Decided - not yet applied"]
["Annex III n. 41","9 industrial","2017-07-22","2024-07-21",null,"Valid"]
["Annex IV n. 1","9 industrial","2017-07-22","2024-07-21",null,"Valid"]
["Annex IV n. 2","9 industrial","2017-07-22","2024-07-21",null,"Valid"]
["Annex IV n. 3","9 industrial","2017-07-22","2024-07-21",null,"Valid"]
["Annex IV n. 4","9 industrial","2017-07-22","2024-07-21",null,"Valid"]
["Annex IV n. 5","9 industrial","2017-07-22","2024-07-21",null,"Valid"]
["Annex IV n. 6","9 industrial","2017-07-22","2024-07-21",null,"Valid"]
["Annex IV n. 7","9 industrial","2017-07-22","2024-07-21",null,"Valid"]
["Annex IV n. 8","9 industrial","2017-07-22","2024-07-21",null,"Valid"]
["Annex IV n. 1a","9 industrial","2017-07-22","2024-07-21",null,{"$f":"IF(ISBLANK(D284),$A$386,IF(C284>TODAY(),$A$382,IF(D284-183-365-TODAY()>0,$A$381,IF(D284<C284,$A$386,IF(E284,$A$383,IF(D284<TODAY(),$A$385,$A$384))))))","v":"Valid"}]
["Annex IV n. 1b","9 industrial","2017-07-22","2024-07-21",null,"Valid"]
["Annex IV n. 1c","9 industrial","2017-07-22","2024-07-21",null,"Valid"]
["Annex IV n. 1d","9 industrial","2017-07-22","2024-07-21",null,"Valid"]
["Annex IV n. 9","9 industrial","2017-07-22","2024-07-21",null,"Valid"]
["Annex IV n. 10","9 industrial","2017-07-22","2024-07-21",null,"Valid"]
["Annex IV n. 11","9 industrial","2017-07-22","2024-07-21",null,"Valid"]
["Annex IV n. 12","9 industrial","2017-07-22","2021-06-30",null,"Valid"]
["Annex IV n. 13","9 industrial","2017-07-22","2024-07-21",null,"Valid"]
["Annex IV n. 14","9 industrial","2017-07-22","2024-07-21",null,"Valid"]
["Annex IV n. 15","9 industrial","2017-07-22","2024-07-21",null,"Valid"]
["Annex IV n. 16","9 industrial","2017-07-22","2024-07-21",null,"Valid"]
["Annex IV n. 17","9 industrial","2017-07-22","2024-07-21",null,"Valid"]
["Annex IV n. 18","9 industrial","2017-07-22","2024-07-21",null,"Valid"]
["Annex IV n. 19","9 industrial","2017-07-22","2024-07-21",null,"Valid"]
["Annex IV n. 20","9 industrial","2017-07-22","2024-07-21",null,"Valid"]
["Annex IV n. 21","9 industrial","2017-07-22","2019-12-31",null,"Valid"]
["Annex IV n. 22","9 industrial","2017-07-22","2021-06-30",null,"Valid"]
["Annex IV n. 24","9 industrial","2017-07-22","2019-12-31",null,"Valid"]
["Annex IV n. 25","9 industrial","2017-07-22","2021-06-30",null,"Valid"]
["Annex IV n. 26","9 industrial","2017-07-22","2021-06-30",null,"Valid"]
["Annex IV n. 27","9 industrial","2017-07-22","2020-06-30",null,"Valid"]
["Annex IV n. 28","9 industrial","2017-07-22","2017-12-31",null,"No longer valid"]
["Annex IV n. 29","9 industrial","2017-07-22","2021-06-30",null,"Valid"]
["Annex IV n. 30","9 industrial","2017-07-22","2019-12-31",null,"Valid"]
["Annex IV n. 31(a)","9 industrial","2017-11-06","2024-07-21",null,"Valid"]
["Annex IV n. 32","9 industrial","2017-07-22","2019-12-31",null,"Valid"]
["Annex IV n. 35","9 industrial","2017-07-22","2024-07-21",null,"Valid"]
["Annex IV n. 36","9 industrial","2017-07-22","2020-12-31",null,"Valid"]
["Annex IV n. 37","9 industrial","2017-07-22","2018-12-31","2017-06-30","Valid - requested for renewal"]
["Annex IV n. 38","9 industrial","2017-07-22","2019-12-31",null,"Valid"]
["Annex IV n. 39","9 industrial","2017-07-22","2024-07-21",null,"Valid"]
["Annex IV n. 40","9 industrial","2017-07-22","2020-12-31",null,{"$f":"IF(ISBLANK(D316),$A$386,IF(C316>TODAY(),$A$382,IF(D316-183-365-TODAY()>0,$A$381,IF(D316<C316,$A$386,IF(E316,$A$383,IF(D316<TODAY(),$A$385,$A$384))))))","v":"Valid"}]
["Annex IV n. 43","9 industrial","2016-07-15","2023-07-15",null,"Valid"]
["Annex III n. 1(f)","11 other EEE","2019-07-22","2024-07-21",null,"Decided - not yet applied"]
["Annex III n. 2(b)(3)","11 other EEE","2019-07-22","2024-07-21",null,"Decided - not yet applied"]
["Annex III n. 2(b)(4)","11 other EEE","2019-07-22","2024-07-21",null,"Decided - not yet applied"]
["Annex III n. 3(a-c)","11 other EEE","2019-07-22","2024-07-21",null,"Decided - not yet applied"]
["Annex III n. 4(a)","11 other EEE","2019-07-22","2024-07-21",null,"Decided - not yet applied"]
["Annex III n. 4(e)","11 other EEE","2019-07-22","2024-07-21",null,"Decided - not yet applied"]
["Annex III n. 4(f)","11 other EEE","2019-07-22","2024-07-21",null,"Decided - not yet applied"]
["Annex III n. 5(a)","11 other EEE","2019-07-22","2024-07-21",null,"Decided - not yet applied"]
["Annex III n. 5(b)","11 other EEE","2019-07-22","2024-07-21",null,"Decided - not yet applied"]
["Annex III n. 6(a)","11 other EEE","2019-07-22","2024-07-21",null,"Decided - not yet applied"]
["Annex III n. 6(b)","11 other EEE","2019-07-22","2024-07-21",null,"Decided - not yet applied"]
["Annex III n. 6(c)","11 other EEE","2019-07-22","2024-07-21",null,"Decided - not yet applied"]
["Annex III n. 7(a)","11 other EEE","2019-07-22","2024-07-21",null,"Decided - not yet applied"]
["Annex III n. 7(b)","11 other EEE","2019-07-22","2024-07-21",null,"Decided - not yet applied"]
["Annex III n. 7(c)-I","11 other EEE","2019-07-22","2024-07-21",null,"Decided - not yet applied"]
["Annex III n. 7(c)-II","11 other EEE","2019-07-22","2024-07-21",null,"Decided - not yet applied"]
["Annex III n. 7(c)-IV","11 other EEE","2013-01-07","2016-07-21","2015-01-16","Valid - requested for renewal"]
["Annex III n. 8(b)","11 other EEE","2019-07-22","2024-07-21",null,{"$f":"IF(ISBLANK(D335),$A$386,IF(C335>TODAY(),$A$382,IF(D335-183-365-TODAY()>0,$A$381,IF(D335<C335,$A$386,IF(E335,$A$383,IF(D335<TODAY(),$A$385,$A$384))))))","v":"Decided - not yet applied"}]
["Annex III n. 9","11 other EEE","2019-07-22","2024-07-21",null,"Decided - not yet applied"]
["Annex III n. 9(b)","11 other EEE","2019-07-22","2024-07-21",null,"Decided - not yet applied"]
["Annex III n. 13(a)","11 other EEE","2019-07-22","2024-07-21",null,"Decided - not yet applied"]
["Annex III n. 13(b)","11 other EEE","2019-07-22","2024-07-21",null,"Decided - not yet applied"]
["Annex III n. 15","11 other EEE","2019-07-22","2024-07-21",null,"Decided - not yet applied"]
["Annex III n. 17","11 other EEE","2019-07-22","2024-07-21",null,"Decided - not yet applied"]
["Annex III n. 18(b)","11 other EEE","2019-07-22","2024-07-21",null,"Decided - not yet applied"]
["Annex III n. 21","11 other EEE","2019-07-22","2024-07-21",null,"Decided - not yet applied"]
["Annex III n. 24","11 other EEE","2019-07-22","2024-07-21",null,"Decided - not yet applied"]
["Annex III n. 25","11 other EEE","2019-07-22","2024-07-21",null,"Decided - not yet applied"]
["Annex III n. 29","11 other EEE","2019-07-22","2024-07-21",null,"Decided - not yet applied"]
["Annex III n. 30","11 other EEE","2019-07-22","2024-07-21",null,"Decided - not yet applied"]
["Annex III n. 31","11 other EEE","2019-07-22","2024-07-21",null,"Decided - not yet applied"]
["Annex III n. 32","11 other EEE","2019-07-22","2024-07-21",null,"Decided - not yet applied"]
["Annex III n. 33","11 other EEE","2019-07-22","2024-07-21",null,"Decided - not yet applied"]
["Annex III n. 34","11 other EEE","2019-07-22","2024-07-21",null,"Decided - not yet applied"]
["Annex III n. 37","11 other EEE","2019-07-22","2024-07-21",null,"Decided - not yet applied"]
["Annex III n. 38","11 other EEE","2019-07-22","2024-07-21",null,"Decided - not yet applied"]
["Annex III n. 39","11 other EEE","2011-07-22","2018-11-20",null,"Valid - no longer renewable"]
["Annex III n. 39(a)","11 other EEE","2018-11-21","2019-10-31",null,{"$f":"IF(ISBLANK(D355),$A$386,IF(C355>TODAY(),$A$382,IF(D355-183-365-TODAY()>0,$A$381,IF(D355<C355,$A$386,IF(E355,$A$383,IF(D355<TODAY(),$A$385,$A$384))))))","v":"Decided - not yet applied"}]
["Annex III n. 41","11 other EEE","2014-05-20","2018-12-31","2017-06-30","Valid - requested for renewal"]
["(Pack 8 n. 2015-1)",{"$nulls":3},"2014-11-17","Not applicable - request under assessment"]
["(Pack 8 n. 2015-2)",{"$nulls":3},"2014-11-17","Not applicable - request under assessment"]
["(Pack 8 n. 2015-3)",{"$nulls":3},"2015-01-15","Not applicable - request under assessment"]
["(Pack 10 n. 2013-5)",{"$nulls":3},"2013-05-09","Not applicable - request under assessment"]
["(Pack 11 n. 2016-1)",{"$nulls":3},"2015-07-29","Not applicable - request under assessment"]
["(Pack 11 n. 2016-2)",{"$nulls":3},"2015-07-02","Not applicable - request under assessment"]
["(Pack 12 n. A-2016)",{"$nulls":3},"2015-12-03","Not applicable - request under assessment"]
["(Pack 12 n. B-2016)",{"$nulls":3},"2015-12-15","Not applicable - request under assessment"]
["(Pack 13 n. 2016-5)",{"$nulls":3},"2016-12-21","Not applicable - request under assessment"]
["(Pack 13 n. 2017-1)",{"$nulls":3},"2017-02-15","Not applicable - request under assessment"]
["(Pack 13 n. 2017-2)",{"$nulls":3},"2017-06-01","Not applicable - request under assessment"]
["(Pack 14 n. 2017-3)",{"$nulls":3},"2017-06-08","Not applicable - request under assessment"]
["(Pack 14 n. 2017-4)",{"$nulls":3},"2017-06-27",{"$f":"IF(ISBLANK(D369),$A$386,IF(C369>TODAY(),$A$382,IF(D369-183-365-TODAY()>0,$A$381,IF(D369<C369,$A$386,IF(E369,$A$383,IF(D369<TODAY(),$A$385,$A$384))))))","v":"Not applicable - request under assessment"}]
["(Pack 14 n. 2017-5)",{"$nulls":3},"2017-06-29","Not applicable - request under assessment"]
["(Pack 14 n. 2017-6)",{"$nulls":3},"2017-06-29","Not applicable - request under assessment"]
["(Pack 14 n. 2017-7)",{"$nulls":3},"2017-09-29",{"$f":"IF(ISBLANK(D372),$A$386,IF(C372>TODAY(),$A$382,IF(D372-183-365-TODAY()>0,$A$381,IF(D372<C372,$A$386,IF(E372,$A$383,IF(D372<TODAY(),$A$385,$A$384))))))","v":"Not applicable - request under assessment"}]
["(Pack 15 n. tbc)",{"$nulls":3},"2017-09-29",{"$f":"IF(ISBLANK(D373),$A$386,IF(C373>TODAY(),$A$382,IF(D373-183-365-TODAY()>0,$A$381,IF(D373<C373,$A$386,IF(E373,$A$383,IF(D373<TODAY(),$A$385,$A$384))))))","v":"Not applicable - request under assessment"}]
["Request new exemption (Pack tbc)",{"$nulls":3},"2018-01-19",{"$f":"IF(ISBLANK(D374),$A$386,IF(C374>TODAY(),$A$382,IF(D374-183-365-TODAY()>0,$A$381,IF(D374<C374,$A$386,IF(E374,$A$383,IF(D374<TODAY(),$A$385,$A$384))))))","v":"Not applicable - request under assessment"}]
[]
[]
[]
[]
[]
[]
["Valid",{"$nulls":4},{"$f":"COUNTIFS(exemptions_validity[Validity status],\"=\"&$A381)","v":226}]
["Decided - not yet applied",{"$nulls":4},{"$f":"COUNTIFS(exemptions_validity[Validity status],\"=\"&$A382)","v":44}]
["Valid - requested for renewal",{"$nulls":4},{"$f":"COUNTIFS(exemptions_validity[Validity status],\"=\"&$A383)","v":41}]
["Valid - no longer renewable",{"$nulls":4},{"$f":"COUNTIFS(exemptions_validity[Validity status],\"=\"&$A384)","v":8}]
["No longer valid",{"$nulls":4},{"$f":"COUNTIFS(exemptions_validity[Validity status],\"=\"&$A385)","v":34}]
["Not applicable - request under assessment",{"$nulls":4},{"$f":"COUNTIFS(exemptions_validity[Validity status],\"=\"&$A386)","v":18}]
[]
[]
[]
["PLANNING TOOL"]
["valid, renewable but not requested expiring by:"]
["2020-06-30",{"$nulls":4},{"$f":"COUNTIFS(exemptions_validity[End],\"<=\"&$A$392,exemptions_validity[Validity status],\"=\"&$A$381)","v":18}]

{"sheet":"Ongoing applications","index":1,"n_rows":109,"n_cols":12,"rows_kept":109,"hidden":true,"merged":[[0,0,1,0],[0,1,1,1],[0,2,1,2],[0,3,0,4],[0,5,1,5],[0,6,0,7],[0,8,1,8],[0,9,1,9],[0,10,1,10],[0,11,1,11],[2,0,4,0],[2,1,4,1],[5,0,6,0],[5,1,6,1],[7,0,39,0],[7,1,39,1],[7,2,9,2],[7,3,9,3],[7,4,9,4],[7,5,9,5],[7,6,9,6],[7,7,9,7],[10,2,12,2],[10,3,12,3],[10,4,12,4],[10,5,12,5],[10,6,12,6],[10,7,12,7],[13,2,19,2],[13,3,19,3],[13,4,19,4],[13,5,19,5],[13,6,19,6],[13,7,19,7],[20,2,25,2],[20,3,25,3],[20,4,25,4],[20,5,25,5],[20,6,25,6],[20,7,25,7],[26,2,33,2],[26,3,33,3],[26,4,33,4],[26,5,33,5],[26,6,33,6],[26,7,33,7],[35,2,36,2],[35,3,36,3],[35,4,36,4],[35,5,36,5],[35,6,36,6],[35,7,36,7],[40,0,52,0],[40,1,52,1],[40,2,41,2],[40,3,41,3],[40,4,41,4],[40,5,41,5],[40,6,41,6],[40,7,41,7],[43,2,44,2],[43,3,44,3],[43,4,44,4],[43,5,44,5],[43,6,44,6],[43,7,44,7],[49,2,50,2],[49,3,50,3],[49,4,50,4],[49,5,50,5],[49,6,50,6],[49,7,50,7],[51,2,52,2],[51,3,52,3],[51,4,52,4],[51,5,52,5],[51,6,52,6],[51,7,52,7],[53,0,93,0],[53,1,93,1],[53,2,62,2],[53,3,62,3],[53,4,54,4],[53,5,62,5],[53,6,62,6],[53,7,54,7],[55,4,56,4],[55,7,56,7],[57,4,58,4],[57,7,58,7],[59,4,60,4],[59,7,60,7],[61,4,62,4],[61,7,62,7],[63,2,64,2],[63,3,64,3],[63,4,64,4],[63,5,64,5],[63,6,64,6],[63,7,64,7],[65,2,73,2],[65,3,73,3],[65,4,66,4],[65,5,73,5],[65,6,73,6],[65,7,66,7],[67,4,68,4],[67,7,68,7],[69,4,70,4],[69,7,70,7],[72,4,73,4],[72,7,73,7],[74,2,75,2],[74,3,75,3],[74,4,75,4],[74,5,75,5],[74,6,75,6],[74,7,75,7],[77,2,79,2],[77,3,79,3],[77,5,79,5],[77,6,79,6],[80,2,81,2],[80,3,81,3],[80,4,81,4],[80,5,81,5],[80,6,81,6],[80,7,81,7],[82,2,84,2],[82,3,84,3],[82,5,84,5],[82,6,84,6],[85,2,87,2],[85,3,87,3],[85,5,87,5],[85,6,87,6],[89,2,91,2],[89,3,91,3],[89,4,91,4],[89,5,91,5],[89,6,91,6],[89,7,91,7],[94,0,95,0],[94,1,95,1],[96,0,97,0],[96,1,97,1],[98,0,100,0],[98,1,100,1],[101,0,108,0],[101,1,108,1]]}
["For all intermediate steps and drafts:\nhttp://ec.europa.eu/environment/waste/rohs_eee/adaptation_en.htm\n\nFor all published studies http://ec.europa.eu/environment/waste/rohs_eee/studies_rohs1_en.htm\n\nFor directives publication on the OJ:\nhttp://ec.europa.eu/environment/waste/rohs_eee/legis_en.htm","Status of the delegated directive","Consultation of the expert group","Exemption",null,"Substance","Existing or requested wording",null,"Date of application","Applicant","Application number","Completed"]
[{"$nulls":3},"Exemption code","Sub entry",null,"Main wording","Thresholds and specifications"]
["Pack 7","Completed, directives published on OJ","Meeting - discussed on 19 Apr 2016",{"$f":"'Exemptions and requests'!A34","v":"Annex III n. 9(b)"},null,"Lead","Lead in bearing shells and bushes for refrigerant-containing compressors for heating, ventilation, air conditioning and refrigeration (HVACR) applications",null,"2014-10-07","Emerson Climate Technologies","# 74",true]
[null,null,"Meeting - discussed on 19 Apr 2016",{"$f":"'Exemptions and requests'!A39","v":"Annex III n. 13(a)"},null,"Lead","Lead in white glasses used for optical applications",null,"2014-11-11","Spectaris e.V.","# 75",true]
[null,null,"Meeting - discussed on 19 Apr 2016",{"$f":"'Exemptions and requests'!A40","v":"Annex III n. 13(b)"},null,"Lead and cadmium","Cadmium and lead in filter glasses and glasses used for reflectance standards",null,"2014-11-11","Spectaris e.V.","# 76",true]
["Pack 10","Directive adopted, scrutiny period","Meeting - discussed on 1/2 Sep 2016",{"$f":"'Exemptions and requests'!A67","v":"Annex III n. 39"},null,"Cadmium","Cadmium in colour converting II-VI LEDs (< 10 μg Cd per mm 2 of light-emitting area) for use in solid state illumination or display systems",null,"2012-12-21","QD vision","# 88 (second assessment)"]
[null,null,"Meeting (jointly with Annex III 39) - discussed at expert meeting on 1/2 Sep 2016","Annex III - new",null,"Cadmium","Cadmium in light control materials used for display devices",null,"2013-05-09","3M","2013-5 "]
["Pack 9 - 1st batch\n(+Pack 8, 2 requests)","Draft for public feedback planned for end of September 2017","Meeting discussed on 15/16 Dec",{"$f":"'Exemptions and requests'!A22","v":"Annex III n. 6(a)"},null,"Lead","Lead as an alloying element in steel for machining purposes and in galvanised steel containing up to 0,35 % lead by weight",null,"2015-01-16","EUROFER & European General Galvanizers Association (EGGA)","# 41"]
[{"$nulls":8},"2015-01-15","Sensata Technologies","# 42"]
[{"$nulls":8},"2014-12-15","Dunkermotoren GmbH","# 43"]
[null,null,"Meeting discussed on 15/16 Dec",{"$f":"'Exemptions and requests'!A23","v":"Annex III n. 6(b)"},null,"Lead","Lead as an alloying element in aluminium containing up to 0,4 % lead by weight",null,"2015-01-16","European Aluminium Association (AISBL) ","# 44"]
[{"$nulls":8},"2015-01-15","Sensata Technologies","# 45"]
[{"$nulls":8},"2014-12-15","Dunkermotoren GmbH","# 46"]
[null,null,"Meeting discussed on 15/16 Dec",{"$f":"'Exemptions and requests'!A24","v":"Annex III n. 6(c)"},null,"Lead","Copper alloy containing up to 4 % lead by weight",null,"2015-01-20","Bourns Inc.","# 47"]
[{"$nulls":8},"2015-01-15","Sensata Technologies","# 48"]
[{"$nulls":8},"2014-12-15","Dunkermotoren GmbH","# 49"]
[{"$nulls":8},"2014-12-10","Framo Morat GmbH & Co. KG","# 50"]
[{"$nulls":8},"2015-01-16","PHOENIX Contact GmbH & Co. KG & HARTING KGaA","# 51"]
[{"$nulls":8},"2015-01-16","Lighting Europe","# 52"]
[{"$nulls":8},"2014-12-23","KYOYAKU ENTERPRISES LTD.","# 53"]
[null,null,"Meeting discussed on 15/16 Dec",{"$f":"'Exemptions and requests'!A25","v":"Annex III n. 7(a)"},null,"Lead","Lead in high melting temperature type solders (i.e. lead-based alloys containing 85 % by weight or more lead)",null,"2015-01-20","Bourns Inc.","# 54"]
[{"$nulls":8},"2014-12-20","IXYS Semiconductor GmbH","# 55"]
[{"$nulls":8},"2014-12-17","Chenmko Enterprise Co., Ltd.    ","# 56"]
[{"$nulls":8},"2014-12-10","Yeashin Technology Co., Ltd.","# 57"]
[{"$nulls":8},"2015-01-16","Freescale Semiconductor (responsible for umbrella project with Digital Europe and others)","# 58"]
[{"$nulls":8},"2015-01-15","Formosa Microsemi Co., Ltd.","# 59"]
[null,null,"Meeting - discussed on 15/16 Dec",{"$f":"'Exemptions and requests'!A27","v":"Annex III n. 7(c)-I"},null,"Lead","Electrical and electronic components containing lead in a glass or ceramic other than dielectric ceramic in capacitors, e.g. piezoelectronic devices, or in a glass or ceramic matrix compound",null,"2015-01-15","Sensata Technologies","# 61"]
[{"$nulls":8},"2015-01-20","Bourns Inc.","# 62"]
[{"$nulls":8},"2015-01-19","YAGEO Corporation","# 63"]
[{"$nulls":8},"2015-01-16","Murata manufacturing + Japan electronics & Information Technology association (representing umbrella project with 4 Japan EEE associations)","# 64"]
[{"$nulls":8},"2015-01-21","RALEC TECHNOLOGY (KUNSHAN) CO., LTD. (application + update)","# 65"]
[{"$nulls":8},"2015-01-20","BANDELIN electronic GmbH & Co. KG","# 66"]
[{"$nulls":8},"2015-01-16","Murata Elektronik GmbH + VISHAY BC components BEYSCHLAG GmbH (representing umbrella project with Digital Europe and others)","# 67"]
[{"$nulls":8},"2015-01-20","SCHOTT AG, Standort Landshut","# 68"]
[null,null,"Meeting (jointly with Annex III 7c-I) - discussed on 15/16 Dec","Annex III and IV - new",{"$nulls":4},"2014-11-17","Pyreos Ltd","2015-1"]
[null,null,"Meeting - discussed on 15/16 Dec","Annex III n. 18(b)",null,"Lead","Lead as activator in the fluorescent powder (1 % lead by weight or less) of discharge lamps when used as sun tanning lamps containing phosphors such as BSP (BaSi2O5:Pb)",null,"2015-01-16","Lighting Europe","# 78"]
[{"$nulls":8},"2014-12-19","NARVA Lichtquellen GmbH + Co. KG","# 79"]
[null,null,"Meeting (jointly with Annex III 18b) - discussed on 15/16 Dec"," For medical devices, Annex IV - new",null,"Lead","Lead as activator in the fluorescent powder (1% lead by weight or less) of discharge lamps when used as phototherapy lamps containing phosphors such as BSP (BaSi2O5:Pb)",null,"2015-01-15","LightingEurope","2015-3"]
[null,null,"Meeting - discussed on 15/16 Dec (with 7(a))","Annex III n. 24",null,"Lead","Lead in solders for the soldering to machined through hole discoidal and planar array ceramic multilayer capacitors",null,"2015-01-16","Knowles Capacitors","# 81"]
[null,null,"Meeting - discussed on 15/16 Dec","Annex III n. 34",null,"Lead","Lead in cermet-based trimmer potentiometer elements",null,"2015-01-16","General Electric (responsible for umbrella project with Digital Europe and others)","# 85"]
["Pack 9 - 2nd batch","Draft for public feedback planned for October 2017","Writing, April-May 2017","Annex III n. 7(c)-II",null,"Lead","Lead in dielectric ceramic in capacitors for a rated voltage of 125 V AC or 250 V DC or higher",null,"2015-01-16","Murata Elektronik GmbH (representing umbrella project with Digital Europe and others)","# 69"]
[{"$nulls":8},"2015-01-16","Murata manufacturing + Japan electronics & Information Technology association (representing umbrella project with 4 Japan EEE associations)","# 69.a"]
[null,null,"Writing, April-May 2017","Annex III n. 7(c)-IV",null,"Lead","Lead in PZT based dielectric ceramic materials for capacitors which are part of integrated circuits or discrete semiconductors",null,"2015-01-16","STMicroelectronics","# 70"]
[null,null,"Writing, April-May 2017","Annex III n. 8(b)",null,"Cadmium","Cadmium and its compounds in electrical contacts",null,"2015-01-16","NEMA (National Electrical Manufacturers Association) (responsible for umbrella project with Digital Europe and others)","# 71"]
[{"$nulls":8},"2015-01-15","Sensata Technologies","# 72"]
[null,null,"Writing, April-May 2017","Annex III n. 9",null,"Hexavalent chromium","Hexavalent chromium as an anticorrosion agent of the carbon steel cooling system in absorption refrigerators up to 0,75 % by weight in the cooling solution",null,"2015-01-20","Dometic","# 73"]
[null,null,"Writing, April-May 2017","Annex III n. 15",null,"Lead","Lead in solders to complete a viable electrical connection between semiconductor die and carrier within integrated circuit flip chip packages",null,"2015-01-16","Intel Corporation (responsible for umbrella project with Digital Europe and others)","# 77"]
[null,null,"Writing, April-May 2017","Annex III n. 21",null,"Lead and cadmium","Lead and cadmium in printing inks for the application of enamels on glasses, such as borosilicate and soda lime glasses",null,"2015-01-16","Lighting Europe","# 80"]
[null,null,"Writing, April-May 2017","Annex III n. 29",null,"Lead","Lead bound in crystal glass as defined in Annex I (Categories 1, 2, 3 and 4) of Council Directive 69/493/EEC",null,"2015-01-16","European domestic glass & Lighting Europe","# 82"]
[null,null,"Writing, April-May 2017","Annex III n. 32",null,"Lead","Lead oxide in seal frit used for making window assemblies for Argon and Krypton laser tubes",null,"2015-01-16","Coherent Inc.","# 83"]
[{"$nulls":8},"2015-01-21","JDS Uniphase Corporation","# 84"]
[null,null,"Writing, April-May 2017","Annex III n. 37",null,"Lead","Lead in the plating layer of high voltage diodes on the basis of a zinc borate glass body",null,"2015-01-16","General Electric (responsible for umbrella project with Digital Europe and others)","# 86"]
[{"$nulls":8},"2015-01-09","IXYS Semiconductor GmbH","# 87"]
["Pack 9 - 3rd batch\n(+Pack 8, 1 request)","Draft for public feedback planned for November 2017","Meeting - discussed on 1/2 Sep 2016\n+ follow up in writing planned for Autumn 2017","Annex III n. 1(a-e)","Annex III n. 1(a)","Mercury","Mercury in single capped (compact) fluorescent lamps for general lighting purposes not exceeding (per burner):","< 30 W: 5 mg","2015-01-16","Lighting Europe","# 1"]
[{"$nulls":8},"2014-12-19","NARVA Lichtquellen GmbH + Co. KG","# 2"]
[{"$nulls":4},"Annex III n. 1(b)",null,null,"≥ 30 W and < 50 W: 5 mg","2015-01-16","Lighting Europe","# 3"]
[{"$nulls":8},"2014-12-19","NARVA Lichtquellen GmbH + Co. KG","# 4"]
[{"$nulls":4},"Annex III n. 1(c)",null,null,"≥ 50 W and < 150 W: 5 mg","2015-01-16","Lighting Europe","# 5"]
[{"$nulls":8},"2014-12-19","NARVA Lichtquellen GmbH + Co. KG","# 6"]
[{"$nulls":4},"Annex III n. 1(d)",null,null,"≥ 150 W: 15 mg","2015-01-16","Lighting Europe","# 7"]
[{"$nulls":8},"2014-12-19","NARVA Lichtquellen GmbH + Co. KG","# 8"]
[{"$nulls":4},"Annex III n. 1(e)",null,null,"with circular or square structural shape and tube diameter ≤ 17 mm","2015-01-16","Lighting Europe","# 9"]
[{"$nulls":8},"2014-12-19","NARVA Lichtquellen GmbH + Co. KG","# 10"]
[null,null,"Writing Autumn 2017","Annex III n. 1(f)","Annex III n. 1(f)",null,"Mercury in single capped (compact) fluorescent lamps for special purposes not exceeding (per burner):","5 mg","2015-01-16","Lighting Europe","# 11"]
[{"$nulls":8},"2014-12-19","NARVA Lichtquellen GmbH + Co. KG","# 12"]
[null,null,"Meeting - discussed on 1/2 Sep 2016\n+ follow up in writing planned for Autumn 2017","Annex III n. 2(a)","Annex III n. 2(a)(1)","Mercury","Mercury in double-capped linear fluorescent lamps for general lighting purposes not exceeding (per lamp): ","Tri-band phosphor with normal lifetime and a tube diameter < 9 mm (e.g. T2): 5 mg","2015-01-16","Lighting Europe","# 13"]
[{"$nulls":8},"2014-12-19","NARVA Lichtquellen GmbH + Co. KG","# 14"]
[{"$nulls":4},"Annex III n. 2(a)(2)",null,null,"Tri-band phosphor with normal lifetime and a tube diameter ≥ 9 mm and ≤ 17 mm (e.g. T5): 5 mg","2015-01-16","Lighting Europe","# 15"]
[{"$nulls":8},"2014-12-19","NARVA Lichtquellen GmbH + Co. KG","# 16"]
[{"$nulls":4},"Annex III n. 2(a)(3)",null,null,"Tri-band phosphor with normal lifetime and a tube diameter > 17 mm and ≤ 28 mm (e.g. T8): 5 mg","2015-01-16","Lighting Europe","# 17"]
[{"$nulls":8},"2014-12-19","NARVA Lichtquellen GmbH + Co. KG","# 18"]
[{"$nulls":4},"Annex III n. 2(a)(4)",null,null,"Tri-band phosphor with normal lifetime and a tube diameter > 28 mm (e.g. T12): 5 mg","2014-12-19","NARVA Lichtquellen GmbH + Co. KG","# 19"]
[{"$nulls":4},"Annex III n. 2(a)(5)",null,null,"Tri-band phosphor with long lifetime (≥ 25000 h): 8 mg","2015-01-16","Lighting Europe","# 20"]
[{"$nulls":8},"2014-12-19","NARVA Lichtquellen GmbH + Co. KG","# 21"]
[null,null,"Writing Autumn 2017","Annex III n. 2(b)(3)",null,"Mercury","Mercury in other fluorescent lamps not exceeding (per lamp):","Non-linear tri-band phosphor lamps with tube diameter > 17 mm (e.g. T9)","2015-01-16","Lighting Europe","# 22"]
[{"$nulls":8},"2014-12-19","NARVA Lichtquellen GmbH + Co. KG","# 23"]
[null,null,"Writing Autumn 2017","Annex III n. 2(b)(4)",null,"Mercury","Mercury in other fluorescent lamps not exceeding (per lamp):","Lamps for other general lighting and special purposes (e.g. induction lamps)","2015-01-16","Lighting Europe","# 24"]
[null,null,"Writing Autumn 2017","Annex III n. 3","Annex III n. 3(a)","Mercury","Mercury in cold cathode fluorescent lamps and external electrode fluorescent lamps (CCFL and EEFL) for special purposes not exceeding (per lamp):","Short length (≤ 500 mm)","2015-01-16","Lighting Europe","# 25"]
[{"$nulls":4},"Annex III n. 3(b)",null,null,"Medium length (> 500 mm and ≤ 1500 mm)","2015-01-16","Lighting Europe","# 26"]
[{"$nulls":4},"Annex III n. 3(c )",null,null,"Long length (> 1500 mm)","2015-01-16","Lighting Europe","# 27"]
[null,null,"Writing Autumn 2017","Annex III n. 4(a)",null,"Mercury","Mercury in other low pressure discharge lamps (per lamp)",null,"2015-01-16","Lighting Europe","# 28"]
[{"$nulls":8},"2014-12-19","NARVA Lichtquellen GmbH + Co. KG","# 29"]
[null,null,"Meeting - discussed on 1/2 Sep 2016\n+ follow up in writing planned for Autumn 2017","Annex III n. 4(b)","Annex III n. 4(b)-I","Mercury","Mercury in High Pressure Sodium (vapour) lamps for general lighting purposes not exceeding (per burner) in lamps with improved colour rendering index Ra > 60:","\nP ≤ 155 W\n\n","2015-01-16","Lighting Europe","# 30"]
[{"$nulls":4},"Annex III n. 4(b)-II",null,null,"155 W < P ≤ 405 W","2015-01-16","Lighting Europe","# 31"]
[{"$nulls":4},"Annex III n. 4(b)-III",null,null,"P > 405 W","2015-01-16","Lighting Europe","# 32"]
[null,null,"Meeting - discussed on 1/2 Sep 2016\n+ follow up in writing planned for Autumn 2017","Annex III n. 4(c)","Annex III n. 4(c)-I","Mercury","Mercury in other High Pressure Sodium (vapour) lamps for general lighting purposes not exceeding (per burner):","\nP ≤ 155 W","2015-01-16","Lighting Europe","# 33"]
[{"$nulls":4},"Annex III n. 4(c)-II",null,null,"155 W < P ≤ 405 W","2015-01-16","Lighting Europe","# 34"]
[{"$nulls":4},"Annex III n. 4(c)-III",null,null,"P > 405 W","2015-01-16","Lighting Europe","# 35"]
[null,null,"Writing Autumn 2017","Annex III n. 4(e)",null,"Mercury","Mercury in metal halide lamps (MH)",null,"2015-01-16","Lighting Europe","# 36"]
[null,null,"Writing Autumn 2017","Annex III n. 4(f)",null,"Mercury","Mercury in other discharge lamps for special purposes not specifically mentioned in this Annex",null,"2015-01-16","Lighting Europe","# 37"]
[{"$nulls":8},"2015-01-16","VDMA e.V. (representing several companies)","# 38"]
[{"$nulls":8},"2014-12-17","VskE","# 39"]
[null,null,"Writing Autumn 2017","Annex III n. 5(b)",null,"Lead","Lead in glass of fluorescent tubes not exceeding 0,2 % by weight",null,"2015-01-16","Lighting Europe","# 40"]
[null,null,"Writing Autumn 2017","For industrial monitoring and control instruments, Annex IV - new",null,"Lead","Lead in high voltage cables and cable assemblies for a rated voltage higher than 250kV DC, containing up to 4% lead by weight",null,"2014-11-17","FEI Company","2015-2"]
["Pack 11","Draft for public feedback planned for early 2018","Current meeting of September 2017","Annex III - new",null,"Lead","Lead in bearings and bushes of professional-use non-road equipment engines that meet the following criteria:","- 15 litre and larger total displacement professional use\n\n- Less than 15 litre engines for professional non-road equipment designed for use where the time between a signal to start and full load is required to be less than 10 seconds, for example in emergency, standby generators and peak shaving generators\n\n- Less than 15 litre engines for professional non-road equipment designed for operation in harsh and dirty environments such as construction sites, quarries, mines, etc. for example, in drills, air compressors, rock crushers, irrigation pumps and tub grinders","2015-07-29","The European Association of Internal Combustion Engine Manufac-turers (EUROMOT)","2016-1"]
[null,null,"Current meeting of September 2017","For medical devices, Annex IV - new",null,"Lead","Lead in solders used to construct and connect to Peltier thermal cyclers used for in-vitro diagnostic analysers that use polymerase chain reaction","For medical devices, Annex IV","2015-07-02","Roche Diagnostics Ltd.","2016-2"]
["Pack 12","Draft for public feedback planned for early 2018","Current meeting of September 2017","Annex IV - new",null,"Cadmium","Cadmium in video cameras designed for use in environments exposed to ionising radiation ","with a dose rate in excess of 100Gy/hour and a total dose in excess of 100KGy with a centre resolution greater than 450 TV Lines","2015-12-03","Mirion Technologies Ltd.","2016-3 (A-2016)"]
[null,null,"Current meeting of September 2017","Annex III - new",null,"Lead","Lead in recycled PVC for profiles (windows and doors)",null,"2015-12-15","EuroWindoor AISBL et al","2016-4 (B-2016)"]
["Pack 13","Study launched, to be completed by spring 2018",2018,"Annex III n. 1(g)",null,"Mercury","Mercury in single capped (compact) fluorescent lamps not exceeding (per burner): For general lighting purposes < 30 W with a lifetime equal or above 20000 h: 3,5 mg",null,"2016-06-28","Lighting Europe"]
[null,null,2018,"Annex IV - new",null,"Lead","Lead in gas detectors under certain conditions",null,"2016-12-21","Oldham","2016-5"]
[null,null,2018,"Annex IV - new",null,"Lead","Lead in solder used to make electrical connections to vacuum boards used in Mass Spectrometers. Boards designed to be used periodically under low pressure.",null,"2017-02-15",null,"2017-1"]
["Pack 14","Study to be launched soon",2018,"Annex III n. 41",null,"Lead","Lead in solders and termination finishes of electrical and electronic components and finishes of printed circuit boards used in ignition modules and other electrical and electronic engine control systems, which for technical reasons must be mounted directly on or in the crankcase or cylinder of hand-held combustion engines (classes SH:1, SH:2, SH:3 of Directive 97/68/EC of the European Parliament and of the Council",null,"2017-06-30","Andreas Stihl AG & Co KG"]
[null,null,2018,{"$f":"'Exemptions and requests'!#REF!","v":{"$error":"#REF!"}},null,"Lead","Lead in platinized platinum electrodes used for conductivity measurements where at least one of the following conditions applies:","(a) wide-range measurements with a conductivity range covering more than 1 order of magnitude (e.g. range between 0,1 mS/m and 5 mS/m) in laboratory applications for unknown concentrations;\n(b) measurements of solutions where an accuracy of +/– 1 % of the sample range and where high corrosion resistance of the electrode are required for any of the following:\n(i) solutions with an acidity < pH 1;\n(ii) solutions with an alkalinity > pH 13;\n(iii) corrosive solutions containing halogen gas;\n(c) measurements of conductivities above 100 mS/m that must be performed with portable instruments.","2017-06-30","JBCE"]
[null,null,2018,"Annex IV n. 41",null,"Lead","Lead as a thermal stabiliser in polyvinyl chloride (PVC) used as base material in amperometric, potentiometric and conductometric electrochemical sensors which are used in in-vitro diagnostic medical devices for the analysis of blood and other body fluids and body gases",null,"2017-05-25","Intertek Health,\nEnvironmental & Regulatory Services"]
[null,null,2018,"Annex IV - new",null,"Lead and hexavalent chromium","Lead in solder and Hexavalent Chromium in parts used to make RF detectors in Mass Spectrometers",null,"2017-06-01","Sciex","2017-2"]
[null,null,2018,"Annex IV - new",null,"Lead","Lead in solders of alpha spectrometers, pulse-processing electronics, scintillation detectors and spectroscopy systems used in equipment to identify radiation",null,"2017-06-08","AMETEK–Advanced Measurement Technology","2017-3"]
[null,null,2018,"Annex III - new",null,"Lead","Lead in thermal cutoff fuses overmolded into solenoid coils used in industrial monitoring and control instruments (Category 9) and EEE falling under Category 11",null,"2017-06-27","ASCO Numatics","2017-4"]
[null,null,2018,"Annex III - new",null,"Lead","Lead in solders of sensors, actuators and engine control units (ECUs) that are used to monitor and control engine systems including turbochargers and exhaust emission controls of internal combustion engines used in equipment that are not intended to be used solely by consumers",null,"2017-06-29","Euromot and others","2017-5"]
[null,null,2018,"Annex III - new",null,"DEHP","Bis (2-ethylhexyl) phthalate in rubber parts such as O-rings, seals, vibration dampers, gaskets, hoses, grommets and cap-plugs that are used in engine systems including exhausts and turbochargers that are designed for use in equipment that is not designed solely for consumer use",null,"2017-06-29","Euromot and others","2017-6"]

{"sheet":"Lists","index":2,"n_rows":13,"n_cols":2,"rows_kept":13,"hidden":true}
["EEE categories (from Annex I)","Substances"]
["1. Large household appliances","Lead"]
["2. Small household appliances","Mercury"]
["3. IT and telecommunications equipment","Cadmium"]
["4. Consumer equipment","Hexavalent chromium"]
["5. Lighting equipment","Polybrominated biphenyls (PBB)"]
["6. Electrical and electronic tools","Polybrominated diphenyl ethers (PBDE)"]
["7. Toys, leisure and sports equipment","Lead and cadmium"]
["8. Medical devices","Lead and hexavalent chromium"]
["9. Monitoring and control instruments including industrial monitoring and control instruments","DEHP"]
["10. Automatic dispensers","BBP"]
["11. Other EEE not covered by any of the categories above","DBP"]
[null,"DIBP"]

{"sheet":"Log","index":3,"n_rows":23,"n_cols":2,"rows_kept":23,"hidden":true}
["Version","Comments"]
[2.6,"Exemption 1g applied for renewal"]
[2.7,"Improvements"]
[2.8,"Improvements"]
["2. 9","9b, 13a, 13b renewed"]
["2. 10","renewal request of ex III.41 IV.37, IV.41; exemptions 1-4 indicated only for category 5"]
{"$rows_empty":9}
[null,"#1: Exemption request received"]
[null,"#2: Technical assessment"]
[null,"#3: Commission consultation"]
[null,"#4: External consultation"]
[null,"#5: Translation"]
[null,"#6: Adoption"]
[null,"#7: Colegislators scrutiny"]
[null,"#8: Publication"]